[Event "EUSA-ch Open 2019"]
[Site "Budapest"]
[Date "2019.07.25"]
[Round "1.2"]
[White "Smolka, Marcin"]
[Black "Shevchenko, Kirill"]
[Result "0-1"]
[ECO "C87"]
[WhiteElo "2178"]
[BlackElo "2536"]
[Annotator "ChessBase"]
[PlyCount "99"]
[EventDate "2019.07.23"]
[EventType "team-tourn"]
[EventCountry "HUN"]
[SourceTitle "playchess.com"]
[Source "ChessBase"]
[SourceQuality "1"]
[TimeControl "1500+10"]

1. e4 {[%emt 0:00:00]} e5 {[%emt 0:00:59]} 2. Nf3 {[%emt 0:00:00]} Nc6 {[%emt 0:00:02]} 3. Bb5 {[%emt 0:00:00]} a6 {[%emt 0:00:04]} 4. Ba4 {[%emt 0:00:00]} Nf6 {[%emt 0:00:01]} 5. O-O {[%emt 0:00:00]} Be7 {[%emt 0:00:07]} 6. Re1 {[%emt 0:01:14]} d6 {[%emt 0:00:22]} 7. h3 {[%emt 0:01:29]} b5 {[%emt 0:00:07]} 8. Bb3 {[%emt 0:00:01]} Na5 {[%emt 0:00:02]} 9. c3 {[%emt 0:01:02]} Nxb3 {[%emt 0:00:04]} 10. axb3 {[%emt 0:02:09]} O-O {[%emt 0:00:07]} 11. d4 {[%emt 0:01:50]} Bb7 {[%emt 0:00:04]} 12. Nbd2 {[%emt 0:01:15]} Re8 {[%emt 0:00:14]} 13. Qc2 {[%emt 0:03:47]} exd4 {[%emt 0:00:44]} 14. cxd4 {[%emt 0:01:42]} Bf8 {[%emt 0:00:02]} 15. d5 {[%emt 0:04:21]} Rc8 {[%emt 0:00:13]} 16. Qd3 {[%emt 0:00:22]} Qd7 {[%emt 0:01:52]} 17. Nf1 {[%emt 0:01:43]} c6 {[%emt 0:00:01]} 18. Bg5 {[%emt 0:02:10]} cxd5 {[%emt 0:00:18]} 19. exd5 {[%emt 0:00:08]} Nxd5 {[%emt 0:00:16]} 20. Rxe8 {[%emt 0:01:58]} Rxe8 {[%emt 0:00:04]} 21. Ng3 {[%emt 0:00:55]} h6 {[%emt 0:00:32]} 22. Bd2 {[%emt 0:00:15]} Nf6 {[%emt 0:00:01]} 23. Re1 {[%emt 0:01:05]} Rxe1+ {[%emt 0:00:09]} 24. Bxe1 {[%emt 0:00:02]} Qe6 {[%emt 0:00:27]} 25. Bb4 {[%emt 0:00:24]} Ne4 {[%emt 0:00:15]} 26. Nxe4 {[%emt 0:00:17]} Bxe4 {[%emt 0:00:10]} 27. Qd1 {[%emt 0:00:20]} Bd5 {[%emt 0:00:30]} 28. Nd2 {[%emt 0:00:28]} Qg6 {[%emt 0:00:04]} 29. Qg4 {[%emt 0:00:19]} Qe6 {[%emt 0:01:02]} 30. Qxe6 {[%emt 0:00:06]} fxe6 {[%emt 0:00:02]} 31. f3 {[%emt 0:00:17]} Kf7 {[%emt 0:00:06]} 32. Kf2 {[%emt 0:00:07]} Ke7 {[%emt 0:00:10]} 33. Bc3 {[%emt 0:00:07]} Kd7 {[%emt 0:00:17]} 34. Ke3 {[%emt 0:00:05]} g6 {[%emt 0:00:04]} 35. g3 {[%emt 0:00:15]} Be7 {[%emt 0:00:04]} 36. h4 {[%emt 0:00:11]} h5 {[%emt 0:00:14]} 37. f4 {[%emt 0:00:13]} Bd8 {[%emt 0:00:05]} 38. b4 {[%emt 0:00:13]} Bb6+ {[%emt 0:00:15]} 39. Bd4 {[%emt 0:00:02]} Bc7 {[%emt 0:00:01]} 40. Nb1 {[%emt 0:00:28]} e5 {[%emt 0:00:40]} 41. fxe5 {[%emt 0:00:15]} dxe5 {[%emt 0:00:02]} 42. Bc3 {[%emt 0:00:06]} Ke6 {[%emt 0:00:06]} 43. Be1 {[%emt 0:00:03]} Bb6+ {[%emt 0:00:08]} 44. Ke2 {[%emt 0:00:16]} Bc4+ {[%emt 0:00:18]} 45. Kd2 {[%emt 0:00:14]} e4 {[%emt 0:00:19]} 46. Nc3 {[%emt 0:00:03]} e3+ {[%emt 0:00:24]} 47. Kc1 {[%emt 0:00:08]} Ke5 {[%emt 0:00:04]} 48. Kc2 {[%emt 0:00:17]} Kd4 {[%emt 0:01:03]} 49. Kc1 {[%emt 0:00:14]} Kd3 {[%emt 0:00:08]} 50. Kd1 {[%emt 0:00:10]} 0-1

[Event "EUSA-ch Open 2019"]
[Site "Budapest"]
[Date "2019.07.25"]
[Round "1.3"]
[White "Harutyunian, Tigran K."]
[Black "Sousa, Andre Ventura"]
[Result "1-0"]
[WhiteElo "2539"]
[BlackElo "2362"]
[Annotator "ChessBase"]
[PlyCount "38"]
[EventDate "2019.07.23"]
[EventType "team-tourn"]
[EventCountry "HUN"]
[SourceTitle "playchess.com"]
[Source "ChessBase"]
[SourceQuality "1"]
[TimeControl "1500+10"]

1. e4 {[%emt 0:00:00]} c5 {[%emt 0:00:00]} 2. c4 {[%emt 0:00:00]} Nc6 {[%emt 0:00:33]} 3. Ne2 {[%emt 0:00:03]} e5 {[%emt 0:00:43]} 4. d3 {[%emt 0:00:23]} d6 {[%emt 0:00:06]} 5. g3 {[%emt 0:00:11]} h5 {[%emt 0:00:59]} 6. Nbc3 {[%emt 0:02:13]} h4 {[%emt 0:01:22]} 7. Be3 {[%emt 0:00:28]} Nd4 {[%emt 0:00:43]} 8. Bxd4 {[%emt 0:12:37]} cxd4 {[%emt 0:00:30]} 9. Nd5 {[%emt 0:00:03]} Nf6 {[%emt 0:01:38]} 10. Nxf6+ {[%emt 0:00:58]} Qxf6 {[%emt 0:00:06]} 11. Qb3 {[%emt 0:00:06]} hxg3 {[%emt 0:06:23]} 12. fxg3 {[%emt 0:01:16]} Qf3 {[%emt 0:00:13]} 13. Rg1 {[%emt 0:01:18]} Rxh2 {[%emt 0:00:02]} 14. O-O-O {[%emt 0:00:46]} Be7 {[%emt 0:00:25]} 15. Qb5+ {[%emt 0:00:24]} Kf8 {[%emt 0:00:06]} 16. g4 {[%emt 0:00:44]} g6 {[%emt 0:03:32]} 17. Kb1 {[%emt 0:02:07]} Bh4 {[%emt 0:04:05]} 18. Qd5 {[%emt 0:00:56]} Bf2 {[%emt 0:04:43]} 19. Qxd6+ {[%emt 0:00:04]} Kg8 {[%emt 0:00:00]} 1-0

[Event "EUSA-ch Open 2019"]
[Site "Budapest"]
[Date "2019.07.25"]
[Round "1.6"]
[White "Marques, Ricardo Taborda Trig"]
[Black "Petrosyan, Tigran S."]
[Result "1/2-1/2"]
[ECO "C44"]
[WhiteElo "1958"]
[BlackElo "2448"]
[Annotator "NA"]
[PlyCount "100"]
[EventDate "2019.07.23"]
[EventType "team-tourn"]
[EventCountry "HUN"]
[SourceTitle "playchess.com"]
[Source "ChessBase"]
[SourceQuality "1"]
[TimeControl "1500+10"]

1. e4 {[%emt 0:00:00]} e5 {[%emt 0:00:00]} 2. Nf3 {[%emt 0:00:00]} Nc6 {[%emt 0:00:00]} 3. d4 {[%emt 0:00:10]} exd4 {[%emt 0:00:18]} 4. Nxd4 {[%emt 0:00:05]} Qf6 {[%emt 0:00:50]} 5. Be3 {[%emt 0:00:31]} Bc5 {[%emt 0:00:14]} 6. c3 {[%emt 0:00:02]} Nge7 {[%emt 0:00:03]} 7. g3 {[%emt 0:01:01]} d5 {[%emt 0:02:38]} 8. Bg2 {[%emt 0:00:02]} Bxd4 {[%emt 0:03:26]} 9. cxd4 {[%emt 0:00:05]} dxe4 {[%emt 0:00:01]} 10. Nc3 {[%emt 0:00:20]} Bf5 {[%emt 0:00:55]} 11. Nxe4 {[%emt 0:02:06]} Bxe4 {[%emt 0:00:12]} 12. Bxe4 {[%emt 0:00:01]} Rd8 {[%emt 0:00:08]} 13. O-O {[%emt 0:03:40]} O-O {[%emt 0:04:17]} 14. Qh5 {[%emt 0:03:38]} g6 {[%emt 0:02:58]} 15. Qb5 {[%emt 0:01:00]} Qe6 {[%emt 0:02:30]} 16. Bg2 {[%emt 0:02:44]} Nxd4 {[%emt 0:03:43]} 17. Bxd4 {[%emt 0:01:32]} Rxd4 {[%emt 0:00:01]} 18. Qxb7 {[%emt 0:00:58]} Qb6 {[%emt 0:00:07]} 19. Rac1 {[%emt 0:01:57]} Qxb7 {[%emt 0:01:23]} 20. Bxb7 {[%emt 0:00:02]} Rd7 {[%emt 0:00:01]} 21. Be4 Rb8 {[%emt 0:00:49]} 22. b3 {[%emt 0:02:24]} Rb4 {[%emt 0:00:00]} 23. Rfe1 {[%emt 0:00:46]} a5 {[%emt 0:00:56]} 24. Bc6 {[%emt 0:03:03]} Nxc6 {[%emt 0:00:07]} 25. Rxc6 {[%emt 0:00:02]} a4 {[%emt 0:00:52]} 26. bxa4 {[%emt 0:00:35]} Rxa4 {[%emt 0:00:03]} 27. Re2 {[%emt 0:00:04]} Ra7 {[%emt 0:00:39]} 28. Kg2 {[%emt 0:00:06]} Kf8 {[%emt 0:00:10]} 29. h4 {[%emt 0:00:21]} h5 {[%emt 0:00:06]} 30. Kf3 {[%emt 0:00:15]} Rd3+ {[%emt 0:00:09]} 31. Kf4 {[%emt 0:00:29]} Rda3 {[%emt 0:00:26]} 32. Rcc2 {[%emt 0:00:11]} Kg7 {[%emt 0:00:41]} 33. f3 {[%emt 0:01:21]} R7a4+ {[%emt 0:00:05]} 34. Re4 {[%emt 0:00:03]} Rxa2 {[%emt 0:00:06]} 35. Rxc7 {[%emt 0:00:06]} Ra6 {[%emt 0:00:20]} 36. g4 {[%emt 0:00:54]} Rf6+ {[%emt 0:01:06]} 37. Kg3 {[%emt 0:00:05]} hxg4 {[%emt 0:00:10]} 38. Rxg4 {[%emt 0:00:14]} Ra1 {[%emt 0:00:09]} 39. Kg2 {[%emt 0:00:06]} Ra3 {[%emt 0:00:12]} 40. Rg3 {[%emt 0:00:12]} Rf5 {[%emt 0:00:19]} 41. Rc2 {[%emt 0:00:15]} Rb3 {[%emt 0:00:21]} 42. Re2 {[%emt 0:00:02]} Rb4 {[%emt 0:00:01]} 43. Rg4 {[%emt 0:00:14]} Rb3 {[%emt 0:00:02]} 44. Rf2 {[%emt 0:00:12]} Kf6 {[%emt 0:00:02]} 45. Kg3 {[%emt 0:00:03]} Rb1 {[%emt 0:00:08]} 46. Kg2 {[%emt 0:00:04]} Re5 {[%emt 0:00:05]} 47. Rf4+ {[%emt 0:00:11]} Kg7 {[%emt 0:00:02]} 48. Rd2 {[%emt 0:00:07]} Rb7 {[%emt 0:00:14]} 49. Kg3 {[%emt 0:00:08]} Kh6 {[%emt 0:00:04]} 50. Rd6 {[%emt 0:00:14]} Kg7 {[%emt 0:00:18]} 1/2-1/2

[Event "EUSA-ch Open 2019"]
[Site "Budapest"]
[Date "2019.07.25"]
[Round "2.3"]
[White "Shevchenko, Kirill"]
[Black "Grimm, Daniel"]
[Result "1-0"]
[ECO "D16"]
[WhiteElo "2536"]
[BlackElo "2280"]
[Annotator "ChessBase"]
[PlyCount "63"]
[EventDate "2019.07.23"]
[EventType "team-tourn"]
[EventCountry "HUN"]
[SourceTitle "playchess.com"]
[Source "ChessBase"]
[SourceQuality "1"]
[TimeControl "1500+10"]

1. d4 {[%emt 0:00:00]} d5 {[%emt 0:00:01]} 2. c4 {[%emt 0:00:00]} c6 {[%emt 0:00:04]} 3. Nf3 {[%emt 0:00:16]} Nf6 {[%emt 0:00:12]} 4. Nc3 {[%emt 0:00:08]} dxc4 {[%emt 0:00:08]} 5. a4 {[%emt 0:00:08]} e6 {[%emt 0:00:04]} 6. e3 {[%emt 0:00:50]} c5 {[%emt 0:00:06]} 7. Bxc4 {[%emt 0:00:26]} Nc6 {[%emt 0:00:17]} 8. O-O {[%emt 0:00:45]} cxd4 {[%emt 0:00:05]} 9. exd4 {[%emt 0:00:02]} Be7 {[%emt 0:00:21]} 10. Bg5 {[%emt 0:02:38]} O-O {[%emt 0:00:19]} 11. Re1 {[%emt 0:00:17]} Nb4 {[%emt 0:00:29]} 12. Ne5 {[%emt 0:00:38]} Bd7 {[%emt 0:03:05]} 13. Re3 {[%emt 0:05:25]} Nfd5 {[%emt 0:03:30]} 14. Nxd5 {[%emt 0:02:24]} Nxd5 {[%emt 0:00:04]} 15. Bxd5 {[%emt 0:02:02]} Bxg5 {[%emt 0:00:14]} 16. Bxb7 {[%emt 0:00:02]} Rb8 {[%emt 0:05:00]} 17. Rb3 {[%emt 0:00:07]} Qc7 {[%emt 0:00:16]} 18. Ba6 {[%emt 0:03:12]} Rxb3 {[%emt 0:01:21]} 19. Qxb3 {[%emt 0:00:01]} Rb8 {[%emt 0:00:13]} 20. Qg3 {[%emt 0:00:38]} Rb6 {[%emt 0:01:53]} 21. Qxg5 {[%emt 0:02:24]} f6 {[%emt 0:00:17]} 22. Rc1 {[%emt 0:00:42]} Qd8 {[%emt 0:01:04]} 23. Qg3 {[%emt 0:05:04]} fxe5 {[%emt 0:01:10]} 24. Bd3 {[%emt 0:00:02]} exd4 {[%emt 0:01:40]} 25. Qe5 {[%emt 0:00:01]} Qf6 {[%emt 0:03:32]} 26. Qe4 {[%emt 0:00:43]} Rxb2 {[%emt 0:00:35]} 27. f4 {[%emt 0:00:13]} Qh4 {[%emt 0:00:37]} 28. Qxd4 {[%emt 0:00:08]} Ra2 {[%emt 0:02:06]} 29. Bc4 {[%emt 0:00:09]} Rxg2+ {[%emt 0:00:29]} 30. Kxg2 {[%emt 0:00:02]} Bc6+ {[%emt 0:00:01]} 31. Kf1 {[%emt 0:00:14]} Qxh2 {[%emt 0:00:42]} 32. Bxe6+ {[%emt 0:00:05]} 1-0

[Event "EUSA-ch Open 2019"]
[Site "Budapest"]
[Date "2019.07.25"]
[Round "2.4"]
[White "Grimm, Gyorgy"]
[Black "Golubka, Petro"]
[Result "0-1"]
[ECO "B90"]
[WhiteElo "2141"]
[BlackElo "2483"]
[Annotator "ChessBase"]
[PlyCount "146"]
[EventDate "2019.07.23"]
[EventType "team-tourn"]
[EventCountry "HUN"]
[SourceTitle "playchess.com"]
[Source "ChessBase"]
[SourceQuality "1"]
[TimeControl "1500+10"]

1. e4 {[%emt 0:00:00]} c5 {[%emt 0:00:00]} 2. Nf3 {[%emt 0:00:00]} d6 {[%emt 0:00:00]} 3. d4 {[%emt 0:00:01]} cxd4 {[%emt 0:00:00]} 4. Nxd4 {[%emt 0:00:05]} Nf6 {[%emt 0:00:01]} 5. Nc3 {[%emt 0:00:05]} a6 {[%emt 0:00:02]} 6. f3 {[%emt 0:00:42]} e6 {[%emt 0:00:05]} 7. Be3 {[%emt 0:00:02]} b5 {[%emt 0:00:12]} 8. Qd2 {[%emt 0:00:32]} Nbd7 {[%emt 0:00:05]} 9. g4 {[%emt 0:01:57]} h6 {[%emt 0:00:05]} 10. O-O-O {[%emt 0:00:54]} Bb7 {[%emt 0:00:06]} 11. g5 {[%emt 0:03:50]} hxg5 {[%emt 0:00:03]} 12. Bxg5 {[%emt 0:00:02]} Be7 {[%emt 0:00:47]} 13. Bd3 {[%emt 0:02:50]} Rc8 {[%emt 0:00:19]} 14. Kb1 {[%emt 0:00:19]} b4 {[%emt 0:00:07]} 15. Nce2 {[%emt 0:00:40]} Qa5 {[%emt 0:00:39]} 16. Nb3 {[%emt 0:00:31]} Qa4 {[%emt 0:00:24]} 17. Bf4 {[%emt 0:02:32]} Ne5 {[%emt 0:00:49]} 18. Ned4 {[%emt 0:01:35]} g6 {[%emt 0:01:26]} 19. Bg3 {[%emt 0:01:25]} Nfd7 {[%emt 0:02:10]} 20. Qe2 {[%emt 0:04:28]} Nxd3 {[%emt 0:01:42]} 21. cxd3 {[%emt 0:02:29]} Nc5 {[%emt 0:00:52]} 22. Rc1 {[%emt 0:01:00]} Rh5 {[%emt 0:00:33]} 23. Nxc5 {[%emt 0:01:34]} Rhxc5 {[%emt 0:00:30]} 24. Nb3 {[%emt 0:00:31]} Rxc1+ {[%emt 0:00:04]} 25. Rxc1 {[%emt 0:00:02]} Rxc1+ {[%emt 0:00:02]} 26. Nxc1 {[%emt 0:00:02]} Qb5 {[%emt 0:00:10]} 27. Qc2 {[%emt 0:00:32]} Kd7 {[%emt 0:00:26]} 28. Nb3 {[%emt 0:00:32]} e5 {[%emt 0:01:28]} 29. Nd2 {[%emt 0:00:15]} f6 {[%emt 0:00:05]} 30. Qc4 {[%emt 0:00:13]} Qxc4 {[%emt 0:00:27]} 31. Nxc4 {[%emt 0:00:02]} Ke6 {[%emt 0:00:43]} 32. Kc2 {[%emt 0:00:08]} d5 {[%emt 0:00:01]} 33. Na5 {[%emt 0:00:23]} Ba8 {[%emt 0:00:27]} 34. Nb3 {[%emt 0:00:08]} Bc6 {[%emt 0:00:10]} 35. Bf2 {[%emt 0:00:07]} f5 {[%emt 0:00:39]} 36. exf5+ {[%emt 0:00:13]} Kxf5 {[%emt 0:00:37]} 37. Kd2 {[%emt 0:00:11]} Bg5+ {[%emt 0:00:49]} 38. Ke2 {[%emt 0:00:11]} Bb5 {[%emt 0:00:12]} 39. h3 {[%emt 0:00:14]} Bd8 {[%emt 0:00:40]} 40. Kd2 {[%emt 0:00:09]} a5 {[%emt 0:00:09]} 41. d4 {[%emt 0:00:02]} e4 {[%emt 0:00:19]} 42. fxe4+ {[%emt 0:00:14]} Kxe4 {[%emt 0:00:52]} 43. Nc5+ {[%emt 0:00:01]} Kf5 {[%emt 0:00:08]} 44. Be3 {[%emt 0:00:12]} g5 {[%emt 0:01:09]} 45. a3 {[%emt 0:00:19]} Bf1 {[%emt 0:00:20]} 46. axb4 {[%emt 0:00:01]} axb4 {[%emt 0:00:01]} 47. Nd3 {[%emt 0:00:11]} b3 {[%emt 0:00:11]} 48. Nf2 {[%emt 0:00:07]} Ba5+ {[%emt 0:00:07]} 49. Kd1 {[%emt 0:00:02]} Bb4 {[%emt 0:00:15]} 50. Bc1 {[%emt 0:00:24]} Bd6 {[%emt 0:00:39]} 51. Ke1 {[%emt 0:00:03]} Bg2 {[%emt 0:00:09]} 52. Ke2 {[%emt 0:00:20]} Bc7 {[%emt 0:00:40]} 53. Bd2 {[%emt 0:00:05]} Bb6 {[%emt 0:00:05]} 54. Ke3 {[%emt 0:00:21]} Bf1 {[%emt 0:00:07]} 55. Bb4 {[%emt 0:00:06]} Ba7 {[%emt 0:00:10]} 56. Bd6 {[%emt 0:00:12]} Ke6 {[%emt 0:00:10]} 57. Bc7 {[%emt 0:00:09]} Kd7 {[%emt 0:00:16]} 58. Be5 {[%emt 0:00:02]} Ke6 {[%emt 0:00:21]} 59. Bc7 {[%emt 0:00:02]} Kf5 {[%emt 0:00:04]} 60. Bd6 {[%emt 0:00:27]} Bb6 {[%emt 0:00:03]} 61. Bc5 {[%emt 0:00:11]} Bc7 {[%emt 0:00:03]} 62. Kf3 {[%emt 0:00:10]} Bf4 {[%emt 0:00:04]} 63. Be7 {[%emt 0:00:08]} Bc1 {[%emt 0:00:09]} 64. Ba3 {[%emt 0:00:02]} Bxh3 {[%emt 0:00:05]} 65. Nd3 {[%emt 0:00:14]} Bg4+ {[%emt 0:00:36]} 66. Kf2 {[%emt 0:00:03]} Bd2 {[%emt 0:00:04]} 67. Nc5 {[%emt 0:00:20]} Bd1 {[%emt 0:00:07]} 68. Nb7 {[%emt 0:00:11]} g4 {[%emt 0:00:28]} 69. Nd6+ {[%emt 0:00:07]} Kf4 {[%emt 0:00:03]} 70. Nf7 {[%emt 0:00:06]} g3+ {[%emt 0:00:02]} 71. Kf1 {[%emt 0:00:02]} Kf3 {[%emt 0:00:16]} 72. Ne5+ {[%emt 0:00:01]} Ke4 {[%emt 0:00:01]} 73. Bc5 {[%emt 0:00:08]} Bf3 {[%emt 0:00:06]} 0-1

[Event "EUSA-ch Open 2019"]
[Site "Budapest"]
[Date "2019.07.25"]
[Round "2.5"]
[White "Egri, Laszlo Jr."]
[Black "Zaslavsky, Mikhail"]
[Result "0-1"]
[ECO "A35"]
[WhiteElo "2254"]
[BlackElo "2405"]
[Annotator "NA"]
[PlyCount "70"]
[EventDate "2019.07.23"]
[EventType "team-tourn"]
[EventCountry "HUN"]
[SourceTitle "playchess.com"]
[Source "ChessBase"]
[SourceQuality "1"]
[TimeControl "1500+10"]

1. c4 c5 2. Nc3 Nc6 3. Nf3 {[%emt 0:00:13]} e5 {[%emt 0:00:11]} 4. g3 {[%emt 0:00:00]} f5 {[%emt 0:00:00]} 5. d3 {[%emt 0:00:26]} Nf6 {[%emt 0:00:00]} 6. Bg2 {[%emt 0:00:01]} Be7 {[%emt 0:00:00]} 7. O-O {[%emt 0:00:03]} O-O {[%emt 0:00:00]} 8. Ne1 {[%emt 0:00:41]} d6 {[%emt 0:00:00]} 9. Nc2 {[%emt 0:00:03]} Be6 {[%emt 0:00:00]} 10. Ne3 {[%emt 0:00:07]} f4 {[%emt 0:00:07]} 11. Ned5 {[%emt 0:00:10]} fxg3 {[%emt 0:01:44]} 12. fxg3 {[%emt 0:02:20]} Qd7 {[%emt 0:00:58]} 13. e3 {[%emt 0:03:59]} Rae8 {[%emt 0:03:15]} 14. Bd2 {[%emt 0:00:06]} Bd8 {[%emt 0:00:11]} 15. Nxf6+ {[%emt 0:01:22]} Bxf6 {[%emt 0:00:42]} 16. Nd5 {[%emt 0:00:24]} Bd8 {[%emt 0:00:55]} 17. Qe2 {[%emt 0:02:46]} Bg4 {[%emt 0:00:24]} 18. Bf3 {[%emt 0:00:32]} Rxf3 {[%emt 0:01:27]} 19. Rxf3 {[%emt 0:00:03]} e4 {[%emt 0:00:01]} 20. dxe4 {[%emt 0:01:07]} Ne5 {[%emt 0:00:07]} 21. Raf1 {[%emt 0:00:39]} Nxf3+ {[%emt 0:00:08]} 22. Rxf3 {[%emt 0:00:02]} Qe6 {[%emt 0:02:33]} 23. Qf2 {[%emt 0:02:48]} Bxf3 {[%emt 0:00:11]} 24. Qxf3 {[%emt 0:00:01]} Qxe4 {[%emt 0:00:13]} 25. Qxe4 {[%emt 0:00:15]} Rxe4 {[%emt 0:00:02]} 26. b3 {[%emt 0:00:01]} Bf6 {[%emt 0:02:08]} 27. Kf2 {[%emt 0:00:22]} Kf7 {[%emt 0:00:12]} 28. a4 {[%emt 0:01:02]} Re8 {[%emt 0:00:28]} 29. Ke2 {[%emt 0:00:31]} Be5 {[%emt 0:00:11]} 30. Kf3 {[%emt 0:01:29]} Rf8 {[%emt 0:00:22]} 31. Bc3 {[%emt 0:03:22]} Ke6+ {[%emt 0:00:17]} 32. Ke2 {[%emt 0:00:01]} Bxc3 {[%emt 0:00:45]} 33. Nxc3 {[%emt 0:00:01]} Ke5 {[%emt 0:01:35]} 34. Ke1 {[%emt 0:00:08]} Rf6 {[%emt 0:00:41]} 35. h3 {[%emt 0:00:16]} Rf3 {[%emt 0:00:14]} 0-1

[Event "EUSA-ch Open 2019"]
[Site "Budapest"]
[Date "2019.07.25"]
[Round "2.6"]
[White "Galburd, Yan"]
[Black "Voros, Gellert"]
[Result "1-0"]
[ECO "D00"]
[WhiteElo "2429"]
[BlackElo "2164"]
[Annotator "NA"]
[PlyCount "95"]
[EventDate "2019.07.23"]
[EventType "team-tourn"]
[EventCountry "HUN"]
[SourceTitle "playchess.com"]
[Source "ChessBase"]
[SourceQuality "1"]
[TimeControl "1500+10"]

1. d4 {[%emt 0:00:00]} d5 {[%emt 0:00:00]} 2. Bf4 {[%emt 0:00:00]} Nf6 {[%emt 0:00:10]} 3. e3 {[%emt 0:00:00]} c5 {[%emt 0:00:10]} 4. Nf3 {[%emt 0:00:01]} Nc6 {[%emt 0:00:08]} 5. Nbd2 {[%emt 0:00:05]} Bg4 {[%emt 0:00:15]} 6. c3 {[%emt 0:01:54]} Qb6 {[%emt 0:02:06]} 7. dxc5 {[%emt 0:01:00]} Qxc5 {[%emt 0:00:23]} 8. Be2 {[%emt 0:00:22]} e6 {[%emt 0:00:29]} 9. O-O {[%emt 0:00:22]} Be7 {[%emt 0:02:05]} 10. b4 {[%emt 0:01:49]} Qxc3 {[%emt 0:03:48]} 11. b5 {[%emt 0:00:02]} Nb4 {[%emt 0:00:32]} 12. Rc1 {[%emt 0:06:09]} Qa3 {[%emt 0:00:56]} 13. Rc7 {[%emt 0:00:47]} Nxa2 {[%emt 0:06:21]} 14. Qa1 {[%emt 0:01:13]} Bb4 {[%emt 0:06:42]} 15. Nb1 {[%emt 0:01:11]} Qa5 {[%emt 0:01:10]} 16. Qb2 {[%emt 0:06:38]} Bf5 {[%emt 0:00:37]} 17. Nd4 {[%emt 0:01:21]} Bxb1 {[%emt 0:01:13]} 18. Rxb1 {[%emt 0:00:02]} Bc3 {[%emt 0:00:34]} 19. Qc2 {[%emt 0:00:59]} O-O {[%emt 0:00:07]} 20. Nb3 {[%emt 0:00:09]} Qa4 {[%emt 0:00:08]} 21. Rxc3 {[%emt 0:00:19]} Nxc3 {[%emt 0:00:02]} 22. Qxc3 {[%emt 0:00:01]} Rfc8 {[%emt 0:00:15]} 23. Qa1 {[%emt 0:01:35]} Qxa1 {[%emt 0:00:10]} 24. Rxa1 {[%emt 0:00:04]} Ne4 {[%emt 0:00:16]} 25. Na5 {[%emt 0:00:11]} g5 {[%emt 0:00:02]} 26. Be5 {[%emt 0:00:33]} f6 {[%emt 0:00:01]} 27. Bg3 {[%emt 0:00:02]} Nxg3 {[%emt 0:00:03]} 28. hxg3 {[%emt 0:00:01]} Rc7 {[%emt 0:00:03]} 29. Nb3 {[%emt 0:00:08]} Kf7 {[%emt 0:00:06]} 30. b6 {[%emt 0:00:19]} Rcc8 {[%emt 0:00:50]} 31. bxa7 {[%emt 0:00:12]} e5 {[%emt 0:00:12]} 32. Bf3 {[%emt 0:00:17]} Ke6 {[%emt 0:00:01]} 33. e4 {[%emt 0:00:01]} Rc7 {[%emt 0:00:20]} 34. exd5+ {[%emt 0:00:14]} Kd6 {[%emt 0:00:00]} 35. g4 {[%emt 0:00:38]} b6 {[%emt 0:00:22]} 36. Ra6 {[%emt 0:00:34]} Rb7 {[%emt 0:00:01]} 37. Na5 {[%emt 0:00:14]} Rbxa7 {[%emt 0:00:15]} 38. Rxb6+ {[%emt 0:00:08]} Kc5 {[%emt 0:00:02]} 39. Rc6+ {[%emt 0:00:08]} Kb4 {[%emt 0:00:08]} 40. Nc4 {[%emt 0:00:15]} Ra6 {[%emt 0:00:15]} 41. Rc7 {[%emt 0:00:43]} Re8 {[%emt 0:00:11]} 42. Nd2 {[%emt 0:00:08]} Ra1+ {[%emt 0:00:08]} 43. Kh2 {[%emt 0:00:01]} Ra2 {[%emt 0:00:20]} 44. Rb7+ {[%emt 0:00:10]} Kc3 {[%emt 0:00:05]} 45. Ne4+ {[%emt 0:00:02]} Kd4 {[%emt 0:00:05]} 46. d6 {[%emt 0:00:24]} h5 {[%emt 0:00:14]} 47. Nxf6 {[%emt 0:00:14]} Rh8 {[%emt 0:00:02]} 48. gxh5 {[%emt 0:00:10]} 1-0

[Event "EUSA-ch Open 2019"]
[Site "Budapest"]
[Date "2019.07.25"]
[Round "3.1"]
[White "Zaslavsky, Mikhail"]
[Black "Shevchenko, Kirill"]
[Result "0-1"]
[ECO "A03"]
[WhiteElo "2405"]
[BlackElo "2536"]
[Annotator "RC"]
[PlyCount "110"]
[EventDate "2019.07.23"]
[EventType "team-tourn"]
[EventCountry "HUN"]
[SourceTitle "playchess.com"]
[Source "ChessBase"]
[SourceQuality "1"]
[TimeControl "1500+10"]

1. f4 {[%emt 0:00:00]} d5 {[%emt 0:00:00]} 2. Nf3 {[%emt 0:00:00]} g6 {[%emt 0:00:05]} 3. e3 {[%emt 0:00:00]} Bg7 {[%emt 0:00:09]} 4. c4 {[%emt 0:00:00]} Nf6 {[%emt 0:00:38]} 5. cxd5 {[%emt 0:00:00]} O-O {[%emt 0:00:06]} 6. Nc3 {[%emt 0:00:00]} Nxd5 {[%emt 0:00:13]} 7. Qb3 {[%emt 0:00:00]} Nxc3 {[%emt 0:01:39]} 8. bxc3 {[%emt 0:00:01]} b6 {[%emt 0:00:08]} 9. d4 {[%emt 0:01:12]} Bb7 {[%emt 0:01:08]} 10. Be2 {[%emt 0:01:20]} c5 {[%emt 0:00:46]} 11. O-O {[%emt 0:00:51]} Nc6 {[%emt 0:01:41]} 12. Ba3 {[%emt 0:02:24]} Na5 {[%emt 0:01:00]} 13. Qa4 {[%emt 0:01:13]} Qd5 {[%emt 0:04:18]} 14. Bxc5 {[%emt 0:03:30]} Rac8 {[%emt 0:05:05]} 15. Bb4 {[%emt 0:15:33]} Nc4 {[%emt 0:00:12]} 16. Bxc4 {[%emt 0:00:13]} Rxc4 {[%emt 0:00:04]} 17. Qb3 {[%emt 0:00:07]} Rfc8 {[%emt 0:00:36]} 18. Rac1 {[%emt 0:00:01]} Qe6 {[%emt 0:06:46]} 19. Kf2 {[%emt 0:00:24]} Bd5 {[%emt 0:00:23]} 20. Qb2 {[%emt 0:00:55]} R4c7 {[%emt 0:00:56]} 21. a4 {[%emt 0:00:14]} f6 {[%emt 0:00:13]} 22. a5 {[%emt 0:00:06]} bxa5 23. Bxa5 {[%emt 0:00:01]} Rb7 {[%emt 0:01:06]} 24. Qa1 {[%emt 0:00:17]} Qe4 {[%emt 0:01:01]} 25. c4 {[%emt 0:00:30]} Rxc4 {[%emt 0:00:19]} 26. Rxc4 {[%emt 0:00:03]} Bxc4 {[%emt 0:00:01]} 27. Nd2 {[%emt 0:00:02]} Qd3 {[%emt 0:00:12]} 28. Nxc4 {[%emt 0:00:06]} Qxc4 {[%emt 0:00:01]} 29. Rc1 {[%emt 0:00:09]} Qd5 {[%emt 0:00:08]} 30. Qc3 {[%emt 0:00:26]} e5 {[%emt 0:00:33]} 31. dxe5 {[%emt 0:00:14]} fxe5 {[%emt 0:00:03]} 32. Qc8+ {[%emt 0:00:01]} Bf8 {[%emt 0:00:03]} 33. Qc4 {[%emt 0:00:13]} Rb2+ {[%emt 0:00:18]} 34. Kf1 {[%emt 0:00:01]} Qxc4+ {[%emt 0:00:32]} 35. Rxc4 {[%emt 0:00:00]} Rb5 {[%emt 0:00:01]} 36. Bc3 {[%emt 0:00:11]} exf4 {[%emt 0:00:09]} 37. exf4 {[%emt 0:00:04]} Rc5 {[%emt 0:00:06]} 38. Rxc5 {[%emt 0:00:06]} Bxc5 {[%emt 0:00:00]} 39. Ke2 {[%emt 0:00:16]} Kf7 {[%emt 0:00:02]} 40. Kf3 {[%emt 0:00:06]} Bb6 {[%emt 0:00:11]} 41. Ke4 {[%emt 0:00:10]} Ke6 {[%emt 0:00:42]} 42. g4 {[%emt 0:00:02]} a5 {[%emt 0:00:01]} 43. f5+ {[%emt 0:00:02]} gxf5+ {[%emt 0:00:01]} 44. gxf5+ {[%emt 0:00:01]} Kf7 {[%emt 0:00:00]} 45. Kd5 {[%emt 0:00:32]} a4 {[%emt 0:00:08]} 46. Kc4 {[%emt 0:00:17]} Bd8 {[%emt 0:00:41]} 47. Kb4 {[%emt 0:00:05]} Bf6 {[%emt 0:00:01]} 48. Bxf6 {[%emt 0:00:38]} Kxf6 {[%emt 0:00:01]} 49. Kxa4 {[%emt 0:00:01]} Kxf5 {[%emt 0:00:01]} 50. Kb4 {[%emt 0:00:04]} Kg4 {[%emt 0:00:16]} 51. Kc4 {[%emt 0:00:01]} Kh3 {[%emt 0:00:06]} 52. Kd4 {[%emt 0:00:02]} Kxh2 {[%emt 0:00:05]} 53. Ke3 {[%emt 0:00:12]} Kg3 {[%emt 0:00:01]} 54. Ke2 {[%emt 0:00:01]} Kg2 {[%emt 0:00:01]} 55. Ke3 {[%emt 0:00:01]} h5 {[%emt 0:00:00]} 0-1